[Event "*** Titled Tuesday Blitz"]
[Site "Chess.com"]
[Date "2020.11.24"]
[Round "4"]
[White "Slovak_fighter2000"]
[Black "Sueetin"]
[Result "1-0"]
[WhiteElo "2452"]
[BlackElo "2269"]
[TimeControl "180+1"]
[EndTime "10:55:05 PST"]
[Termination "Slovak_fighter2000 won on time"]

1. d4 {[%clk 0:03:00.9]} 1... Nf6 {[%clk 0:02:59.4]} 2. Nf3 {[%clk 0:02:58.5]}
2... e6 {[%clk 0:02:58.9]} 3. Bf4 {[%clk 0:02:54.4]} 3... c5 {[%clk 0:02:58.6]}
4. e3 {[%clk 0:02:49.9]} 4... cxd4 {[%clk 0:02:57]} 5. exd4 {[%clk 0:02:49.6]}
5... b6 {[%clk 0:02:57.9]} 6. Nbd2 {[%clk 0:02:49.4]} 6... Bb7 {[%clk
0:02:58.1]} 7. c3 {[%clk 0:02:49.6]} 7... Be7 {[%clk 0:02:58.5]} 8. Bd3 {[%clk
0:02:49.7]} 8... d6 {[%clk 0:02:58.5]} 9. Qe2 {[%clk 0:02:49.6]} 9... O-O {[%clk
0:02:57.9]} 10. O-O {[%clk 0:02:50.1]} 10... Nbd7 {[%clk 0:02:58]} 11. a4 {[%clk
0:02:49.4]} 11... a6 {[%clk 0:02:57.8]} 12. h3 {[%clk 0:02:48.3]} 12... Re8
{[%clk 0:02:56.5]} 13. Bh2 {[%clk 0:02:44.6]} 13... Bf8 {[%clk 0:02:56.5]} 14.
Nc4 {[%clk 0:02:43.8]} 14... Qc7 {[%clk 0:02:56.3]} 15. Rfe1 {[%clk 0:02:42.2]}
15... Bc6 {[%clk 0:02:51.2]} 16. Ne3 {[%clk 0:02:40.7]} 16... Qb7 {[%clk
0:02:45.5]} 17. Nd2 {[%clk 0:02:36.2]} 17... e5 {[%clk 0:02:25.6]} 18. dxe5
{[%clk 0:02:35.5]} 18... dxe5 {[%clk 0:02:25.3]} 19. Bc4 {[%clk 0:02:33.2]}
19... Bc5 {[%clk 0:02:16.1]} 20. b4 {[%clk 0:02:07.7]} 20... Bxe3 {[%clk
0:02:04.7]} 21. fxe3 {[%clk 0:02:08.6]} 21... Bd5 {[%clk 0:01:45.3]} 22. Bd3
{[%clk 0:02:05.5]} 22... e4 {[%clk 0:01:38]} 23. Bc2 {[%clk 0:02:05]} 23... Rac8
{[%clk 0:01:34.3]} 24. c4 {[%clk 0:02:00.6]} 24... Ne5 {[%clk 0:01:19.1]} 25.
Bxe5 {[%clk 0:01:56.4]} 25... Rxe5 {[%clk 0:01:18.5]} 26. Bb3 {[%clk 0:01:54.6]}
26... Be6 {[%clk 0:01:15.4]} 27. Qf2 {[%clk 0:01:49.5]} 27... Rg5 {[%clk
0:01:07.1]} 28. Rac1 {[%clk 0:01:41.7]} 28... Bxh3 {[%clk 0:00:59.9]} 29. g3
{[%clk 0:01:33.6]} 29... Rf5 {[%clk 0:00:52.2]} 30. Qh2 {[%clk 0:01:28.6]} 30...
Rh5 {[%clk 0:00:44.3]} 31. Qf2 {[%clk 0:01:27.8]} 31... Bg4 {[%clk 0:00:22.9]}
32. Bd1 {[%clk 0:01:22]} 32... Qd7 {[%clk 0:00:21.1]} 33. Nf1 {[%clk 0:01:11.3]}
33... Rd8 {[%clk 0:00:19.6]} 34. Bxg4 {[%clk 0:01:09.5]} 34... Qxg4 {[%clk
0:00:18.7]} 35. Rc2 {[%clk 0:00:59.4]} 35... Rd3 {[%clk 0:00:13.6]} 36. c5
{[%clk 0:00:57.4]} 36... bxc5 {[%clk 0:00:12.6]} 37. bxc5 {[%clk 0:00:58]} 37...
Qg6 {[%clk 0:00:08.4]} 38. c6 {[%clk 0:00:53.5]} 38... Qh6 {[%clk 0:00:06]} 39.
Qg2 {[%clk 0:00:51.7]} 39... Ne8 {[%clk 0:00:02.1]} 40. c7 {[%clk 0:00:51.1]}
40... Nxc7 {[%clk 0:00:02.4]} 41. Rxc7 {[%clk 0:00:51.6]} 41... g6 {[%clk
0:00:01.3]} 42. Qxe4 {[%clk 0:00:46.3]} 1-0

[Event "*** Titled Tuesday Blitz"]
[Site "Chess.com"]
[Date "2020.11.24"]
[Round "4"]
[White "Nils_03"]
[Black "witcher8"]
[Result "0-1"]
[WhiteElo "2240"]
[BlackElo "2440"]
[TimeControl "180+1"]
[EndTime "10:55:05 PST"]
[Termination "witcher8 won on time"]

1. d4 {[%clk 0:03:00.9]} 1... Nf6 {[%clk 0:02:58.2]} 2. c4 {[%clk 0:03:01.1]}
2... g6 {[%clk 0:02:57.7]} 3. Nc3 {[%clk 0:03:00.8]} 3... Bg7 {[%clk 0:02:57.3]}
4. Nf3 {[%clk 0:03:00.1]} 4... d6 {[%clk 0:02:56.7]} 5. g3 {[%clk 0:03:00.3]}
5... O-O {[%clk 0:02:51.5]} 6. Bg2 {[%clk 0:03:00.3]} 6... Nc6 {[%clk
0:02:51.4]} 7. O-O {[%clk 0:02:59.8]} 7... a6 {[%clk 0:02:51.8]} 8. h3 {[%clk
0:02:56.7]} 8... Rb8 {[%clk 0:02:30.4]} 9. e4 {[%clk 0:02:55.3]} 9... b5 {[%clk
0:02:29.9]} 10. cxb5 {[%clk 0:02:53.1]} 10... axb5 {[%clk 0:02:30.8]} 11. e5
{[%clk 0:02:48.2]} 11... Nd7 {[%clk 0:02:30.7]} 12. Ng5 {[%clk 0:02:34.5]} 12...
dxe5 {[%clk 0:02:22.9]} 13. Bxc6 {[%clk 0:02:28.3]} 13... exd4 {[%clk
0:02:23.2]} 14. Nxb5 {[%clk 0:02:18.2]} 14... Rb6 {[%clk 0:02:22.6]} 15. Bxd7
{[%clk 0:02:00.1]} 15... Bxd7 {[%clk 0:02:00.7]} 16. Nxd4 {[%clk 0:01:50.7]}
16... Rd6 {[%clk 0:01:59.7]} 17. Be3 {[%clk 0:01:23.8]} 17... Bxd4 {[%clk
0:01:10.6]} 18. Bxd4 {[%clk 0:01:17.4]} 18... e5 {[%clk 0:01:10.6]} 19. Bc5
{[%clk 0:00:55.1]} 19... Rxd1 {[%clk 0:01:09.7]} 20. Raxd1 {[%clk 0:00:56]}
20... Re8 {[%clk 0:01:03.3]} 21. Ne4 {[%clk 0:00:51.4]} 21... Kg7 {[%clk
0:00:50.3]} 22. Be3 {[%clk 0:00:31.7]} 22... Qc8 {[%clk 0:00:49.7]} 23. Bg5
{[%clk 0:00:27.2]} 23... Bxh3 {[%clk 0:00:43.4]} 24. Rfe1 {[%clk 0:00:23.4]}
24... Bg4 {[%clk 0:00:33.7]} 25. Rd5 {[%clk 0:00:15.3]} 25... Bf3 {[%clk
0:00:31]} 26. Bf6+ {[%clk 0:00:15.4]} 26... Kf8 {[%clk 0:00:23.3]} 27. Kh2
{[%clk 0:00:16.3]} 27... Qg4 {[%clk 0:00:20.5]} 28. Rd3 {[%clk 0:00:03.1]} 28...
Bxe4 {[%clk 0:00:17.1]} 29. Rde3 {[%clk 0:00:03.1]} 29... Qh5+ {[%clk
0:00:14.4]} 30. Bh4 {[%clk 0:00:02.8]} 30... f5 {[%clk 0:00:13.6]} 0-1

[Event "*** Titled Tuesday Blitz"]
[Site "Chess.com"]
[Date "2020.11.24"]
[Round "4"]
[White "DonPreuss"]
[Black "lider34"]
[Result "0-1"]
[WhiteElo "2236"]
[BlackElo "2435"]
[TimeControl "180+1"]
[EndTime "10:55:05 PST"]
[Termination "lider34 won by resignation"]

1. d4 {[%clk 0:03:00.9]} 1... g6 {[%clk 0:02:58.1]} 2. e4 {[%clk 0:02:58.6]}
2... c6 {[%clk 0:02:56.5]} 3. Nc3 {[%clk 0:02:59]} 3... d5 {[%clk 0:02:55.1]} 4.
e5 {[%clk 0:02:55.8]} 4... h5 {[%clk 0:02:53.7]} 5. f4 {[%clk 0:02:55]} 5... Nh6
{[%clk 0:02:53.5]} 6. Nf3 {[%clk 0:02:54.8]} 6... Bg7 {[%clk 0:02:53.4]} 7. Bd3
{[%clk 0:02:54.4]} 7... Bg4 {[%clk 0:02:52.7]} 8. O-O {[%clk 0:02:53.5]} 8... e6
{[%clk 0:02:50.3]} 9. h3 {[%clk 0:02:52.3]} 9... Bxf3 {[%clk 0:02:49.8]} 10.
Qxf3 {[%clk 0:02:53.2]} 10... h4 {[%clk 0:02:49.5]} 11. Ne2 {[%clk 0:02:47.1]}
11... Nd7 {[%clk 0:02:48.9]} 12. Be3 {[%clk 0:02:42.2]} 12... Nf5 {[%clk
0:02:47.4]} 13. Bf2 {[%clk 0:02:41.9]} 13... Bf8 {[%clk 0:02:43.4]} 14. c4
{[%clk 0:02:37.4]} 14... Be7 {[%clk 0:02:42.1]} 15. c5 {[%clk 0:02:28.8]} 15...
b6 {[%clk 0:02:26.9]} 16. b4 {[%clk 0:02:28]} 16... Kf8 {[%clk 0:02:21.3]} 17.
g4 {[%clk 0:02:06.6]} 17... hxg3 {[%clk 0:02:16.3]} 18. Nxg3 {[%clk 0:02:04.7]}
18... Rxh3 {[%clk 0:02:09.5]} 19. Kg2 {[%clk 0:02:04.8]} 19... Nh4+ {[%clk
0:02:07.8]} 20. Kxh3 {[%clk 0:02:03.2]} 20... Nxf3 {[%clk 0:02:07.5]} 21. Kg4
{[%clk 0:01:58.1]} 21... Nh2+ {[%clk 0:02:05.7]} 22. Kh3 {[%clk 0:01:56.5]}
22... Nxf1 {[%clk 0:02:06.6]} 23. Rxf1 {[%clk 0:01:56.1]} 23... a5 {[%clk
0:02:03.2]} 24. Kg4 {[%clk 0:01:50]} 24... axb4 {[%clk 0:01:57.9]} 25. Rh1
{[%clk 0:01:48.6]} 25... Kg8 {[%clk 0:01:52.2]} 26. f5 {[%clk 0:01:39.6]} 26...
exf5+ {[%clk 0:01:46.6]} 27. Bxf5 {[%clk 0:01:40.1]} 27... gxf5+ {[%clk
0:01:45.3]} 28. Nxf5 {[%clk 0:01:40.6]} 28... Bg5 {[%clk 0:01:24.5]} 29. Rh5
{[%clk 0:01:32]} 29... Bd2 {[%clk 0:01:23.7]} 30. Bh4 {[%clk 0:01:23]} 30... Qe8
{[%clk 0:01:08]} 31. Ne7+ {[%clk 0:01:04.5]} 31... Kf8 {[%clk 0:00:26.6]} 32.
Bf6 {[%clk 0:00:52.1]} 32... Nxf6+ {[%clk 0:00:17.7]} 33. exf6 {[%clk
0:00:51.4]} 33... Qd7+ {[%clk 0:00:16.1]} 34. Kf3 {[%clk 0:00:19.3]} 34... Ra3+
{[%clk 0:00:14.4]} 35. Ke2 {[%clk 0:00:14.9]} 35... Qg4+ {[%clk 0:00:13.1]} 0-1

[Event "*** Titled Tuesday Blitz"]
[Site "Chess.com"]
[Date "2020.11.24"]
[Round "4"]
[White "rpragchess"]
[Black "ural58"]
[Result "0-1"]
[WhiteElo "2860"]
[BlackElo "2429"]
[TimeControl "180+1"]
[EndTime "10:55:06 PST"]
[Termination "ural58 won on time"]

1. d4 {[%clk 0:03:00.9]} 1... d5 {[%clk 0:02:59.3]} 2. c4 {[%clk 0:02:59.8]}
2... e5 {[%clk 0:02:59.4]} 3. dxe5 {[%clk 0:02:56]} 3... d4 {[%clk 0:02:59.5]}
4. Nf3 {[%clk 0:02:56.3]} 4... Nc6 {[%clk 0:02:59.6]} 5. Nbd2 {[%clk 0:02:56.4]}
5... a5 {[%clk 0:02:55.3]} 6. Nb3 {[%clk 0:02:43.9]} 6... Bg4 {[%clk 0:02:49.4]}
7. Bf4 {[%clk 0:01:57.4]} 7... Bb4+ {[%clk 0:01:22.7]} 8. Nbd2 {[%clk
0:01:32.5]} 8... Nge7 {[%clk 0:01:13.6]} 9. a3 {[%clk 0:00:55.5]} 9... Ng6
{[%clk 0:01:10.4]} 10. axb4 {[%clk 0:00:45]} 10... Nxf4 {[%clk 0:01:10.3]} 11.
b5 {[%clk 0:00:45.9]} 11... Nb4 {[%clk 0:01:10.4]} 12. g3 {[%clk 0:00:46.2]}
12... d3 {[%clk 0:00:56.4]} 13. exd3 {[%clk 0:00:12.3]} 13... Nfxd3+ {[%clk
0:00:52]} 14. Bxd3 {[%clk 0:00:12.6]} 14... Qxd3 {[%clk 0:00:52.5]} 15. Rc1
{[%clk 0:00:13.1]} 15... O-O-O {[%clk 0:00:52.4]} 16. Rc3 {[%clk 0:00:13.6]}
16... Bxf3 {[%clk 0:00:43.6]} 17. Qxf3 {[%clk 0:00:06.7]} 17... Qxd2+ {[%clk
0:00:43.2]} 18. Kf1 {[%clk 0:00:07.3]} 18... Qd1+ {[%clk 0:00:39.5]} 19. Kg2
{[%clk 0:00:06.1]} 19... Qxf3+ {[%clk 0:00:39.3]} 20. Rxf3 {[%clk 0:00:07]}
20... Rhf8 {[%clk 0:00:35.8]} 21. Re1 {[%clk 0:00:06.7]} 21... Rd3 {[%clk
0:00:30.3]} 22. Rf4 {[%clk 0:00:02.1]} 22... Rd2 {[%clk 0:00:11.2]} 23. Rf3
{[%clk 0:00:01.3]} 23... Nd3 {[%clk 0:00:10.7]} 24. Ree3 {[%clk 0:00:01.6]}
24... Nxb2 {[%clk 0:00:08.1]} 25. e6 {[%clk 0:00:01.9]} 25... Nxc4 {[%clk
0:00:07.8]} 26. Rxf7 {[%clk 0:00:01.2]} 26... Re8 {[%clk 0:00:06.6]} 0-1

[Event "*** Titled Tuesday Blitz"]
[Site "Chess.com"]
[Date "2020.11.24"]
[Round "4"]
[White "Itk04"]
[Black "Gusarov91"]
[Result "0-1"]
[WhiteElo "2485"]
[BlackElo "2665"]
[TimeControl "180+1"]
[EndTime "10:55:08 PST"]
[Termination "Gusarov91 won by checkmate"]

1. d4 {[%clk 0:03:00.9]} 1... Nf6 {[%clk 0:02:59.3]} 2. c4 {[%clk 0:03:01.2]}
2... g6 {[%clk 0:02:58.7]} 3. Nc3 {[%clk 0:02:56.2]} 3... d5 {[%clk 0:02:58.5]}
4. cxd5 {[%clk 0:02:53.5]} 4... Nxd5 {[%clk 0:02:57.8]} 5. e4 {[%clk 0:02:54.2]}
5... Nb6 {[%clk 0:02:55.2]} 6. a4 {[%clk 0:02:48]} 6... a5 {[%clk 0:02:54.4]} 7.
Be3 {[%clk 0:02:45]} 7... Bg7 {[%clk 0:02:54.3]} 8. Nf3 {[%clk 0:02:38.4]} 8...
Bg4 {[%clk 0:02:52.3]} 9. Be2 {[%clk 0:02:35.6]} 9... O-O {[%clk 0:02:49.3]} 10.
O-O {[%clk 0:02:30]} 10... Bxf3 {[%clk 0:02:47.5]} 11. Bxf3 {[%clk 0:02:28.8]}
11... Nc4 {[%clk 0:02:47.6]} 12. Qb3 {[%clk 0:02:18.6]} 12... Nxe3 {[%clk
0:02:47.2]} 13. fxe3 {[%clk 0:02:19.5]} 13... Ra6 {[%clk 0:02:32.5]} 14. Qxb7
{[%clk 0:01:57.5]} 14... Rb6 {[%clk 0:02:31.6]} 15. Qd5 {[%clk 0:01:58.1]} 15...
Rxb2 {[%clk 0:02:17.2]} 16. Qxa5 {[%clk 0:01:53.2]} 16... Nc6 {[%clk 0:02:17.1]}
17. Qc5 {[%clk 0:01:52.6]} 17... Nxd4 {[%clk 0:02:16.8]} 18. Rad1 {[%clk
0:01:20.7]} 18... Nxf3+ {[%clk 0:02:15.9]} 19. Rxf3 {[%clk 0:00:55.5]} 19... Rd2
{[%clk 0:02:14.9]} 20. Rxd2 {[%clk 0:00:54.8]} 20... Qxd2 {[%clk 0:02:14.4]} 21.
Nd5 {[%clk 0:00:55.1]} 21... e6 {[%clk 0:02:07]} 22. Nf6+ {[%clk 0:00:41.4]}
22... Bxf6 {[%clk 0:02:05.9]} 23. Rxf6 {[%clk 0:00:42.3]} 23... Qd1+ {[%clk
0:02:05.7]} 24. Rf1 {[%clk 0:00:41.9]} 24... Qxa4 {[%clk 0:02:05.7]} 25. e5
{[%clk 0:00:36]} 25... c6 {[%clk 0:02:03.1]} 26. Rf4 {[%clk 0:00:33.1]} 26...
Qd1+ {[%clk 0:02:02]} 27. Rf1 {[%clk 0:00:33]} 27... Qd5 {[%clk 0:02:01.9]} 28.
Rc1 {[%clk 0:00:32.8]} 28... Qe4 {[%clk 0:01:59.5]} 29. Qd4 {[%clk 0:00:28.7]}
29... Qxd4 {[%clk 0:01:52.4]} 30. exd4 {[%clk 0:00:29.6]} 30... Rd8 {[%clk
0:01:52.9]} 31. Rc4 {[%clk 0:00:27.2]} 31... Kf8 {[%clk 0:01:52.8]} 32. Kf2
{[%clk 0:00:27.2]} 32... Ke7 {[%clk 0:01:53]} 33. Ke3 {[%clk 0:00:27.8]} 33...
Kd7 {[%clk 0:01:53.5]} 34. Ra4 {[%clk 0:00:28.4]} 34... Rb8 {[%clk 0:01:51.5]}
35. Ra7+ {[%clk 0:00:28.5]} 35... Ke8 {[%clk 0:01:51.7]} 36. Rc7 {[%clk
0:00:28.5]} 36... Rb2 {[%clk 0:01:48]} 37. g4 {[%clk 0:00:20.4]} 37... Rxh2
{[%clk 0:01:42.3]} 38. Rxc6 {[%clk 0:00:17.6]} 38... h5 {[%clk 0:01:38.9]} 39.
gxh5 {[%clk 0:00:10.7]} 39... Rxh5 {[%clk 0:01:37.4]} 40. Rc7 {[%clk 0:00:07.9]}
40... Rh4 {[%clk 0:01:37.1]} 41. Rc8+ {[%clk 0:00:04.7]} 41... Ke7 {[%clk
0:01:37.1]} 42. Rc7+ {[%clk 0:00:04.5]} 42... Kf8 {[%clk 0:01:37.6]} 43. Kd3
{[%clk 0:00:03.7]} 43... g5 {[%clk 0:01:37.3]} 44. Ke3 {[%clk 0:00:04]} 44...
Kg7 {[%clk 0:01:37.1]} 45. Kf3 {[%clk 0:00:04.3]} 45... Kg6 {[%clk 0:01:37.1]}
46. Rd7 {[%clk 0:00:04.2]} 46... Rf4+ {[%clk 0:01:37]} 47. Ke3 {[%clk
0:00:02.9]} 47... Rf5 {[%clk 0:01:36.3]} 48. Ke4 {[%clk 0:00:02.9]} 48... g4
{[%clk 0:01:36.4]} 49. d5 {[%clk 0:00:02.5]} 49... g3 {[%clk 0:01:26.8]} 50.
dxe6 {[%clk 0:00:02.8]} 50... g2 {[%clk 0:01:26.7]} 51. Rd1 {[%clk 0:00:02.7]}
51... Rf1 {[%clk 0:01:26.6]} 52. e7 {[%clk 0:00:02.6]} 52... g1=Q {[%clk
0:01:25.9]} 53. e8=Q {[%clk 0:00:01.8]} 53... Qg2+ {[%clk 0:01:23.4]} 54. Ke3
{[%clk 0:00:02.4]} 54... Qf3+ {[%clk 0:01:19.1]} 55. Kd2 {[%clk 0:00:02.5]}
55... Rxd1+ {[%clk 0:01:19.3]} 56. Kc2 {[%clk 0:00:02.6]} 56... Qd3+ {[%clk
0:01:19.5]} 57. Kb2 {[%clk 0:00:02.7]} 57... Rb1+ {[%clk 0:01:20.3]} 58. Ka2
{[%clk 0:00:03.6]} 58... Qb3# {[%clk 0:01:21]} 0-1

[Event "*** Titled Tuesday Blitz"]
[Site "Chess.com"]
[Date "2020.11.24"]
[Round "4"]
[White "AlexeiShirov"]
[Black "Margency"]
[Result "1-0"]
[WhiteElo "2833"]
[BlackElo "2661"]
[TimeControl "180+1"]
[EndTime "10:55:09 PST"]
[Termination "AlexeiShirov won by resignation"]

1. e4 {[%clk 0:03:00.9]} 1... c5 {[%clk 0:03:00]} 2. Nf3 {[%clk 0:03:00.2]} 2...
d6 {[%clk 0:03:00.2]} 3. d4 {[%clk 0:02:59.5]} 3... cxd4 {[%clk 0:03:00.5]} 4.
Nxd4 {[%clk 0:02:58.8]} 4... Nf6 {[%clk 0:03:00.8]} 5. Nc3 {[%clk 0:02:58.4]}
5... a6 {[%clk 0:03:01]} 6. h3 {[%clk 0:02:58.5]} 6... e6 {[%clk 0:03:01]} 7. g4
{[%clk 0:02:57.6]} 7... h6 {[%clk 0:03:01.4]} 8. Bg2 {[%clk 0:02:55.1]} 8...
Nbd7 {[%clk 0:03:01.6]} 9. Be3 {[%clk 0:02:49.6]} 9... g5 {[%clk 0:03:00.8]} 10.
Qe2 {[%clk 0:02:44.2]} 10... Ne5 {[%clk 0:03:00.3]} 11. O-O-O {[%clk 0:02:41]}
11... Bd7 {[%clk 0:03:00.5]} 12. f4 {[%clk 0:02:31]} 12... gxf4 {[%clk
0:02:59.8]} 13. Bxf4 {[%clk 0:02:30.4]} 13... Rc8 {[%clk 0:03:00.4]} 14. Rhf1
{[%clk 0:02:05.7]} 14... Be7 {[%clk 0:02:59.8]} 15. Qe1 {[%clk 0:02:01.8]} 15...
b5 {[%clk 0:02:55.8]} 16. Nce2 {[%clk 0:02:00.6]} 16... Qc7 {[%clk 0:02:31.8]}
17. Kb1 {[%clk 0:01:59.1]} 17... b4 {[%clk 0:02:30.3]} 18. Qxb4 {[%clk
0:01:46.6]} 18... Rb8 {[%clk 0:02:24.7]} 19. Qc3 {[%clk 0:01:43.1]} 19... Nc4
{[%clk 0:01:43]} 20. Bc1 {[%clk 0:01:41.8]} 20... O-O {[%clk 0:01:33.3]} 21. Nb3
{[%clk 0:01:38.2]} 21... Rfc8 {[%clk 0:01:32.5]} 22. Ka1 {[%clk 0:01:27.8]}
22... e5 {[%clk 0:01:27.2]} 23. Bxh6 {[%clk 0:01:23.6]} 23... a5 {[%clk
0:01:25.2]} 24. g5 {[%clk 0:01:22.4]} 24... Nh7 {[%clk 0:01:17]} 25. Qg3 {[%clk
0:01:17.2]} 25... Nf8 {[%clk 0:01:04.6]} 26. Nc3 {[%clk 0:01:15.3]} 26... Be6
{[%clk 0:01:00.7]} 27. g6 {[%clk 0:01:00.2]} 27... Nxg6 {[%clk 0:00:58.9]} 28.
Nd5 {[%clk 0:00:59.5]} 28... Bxd5 {[%clk 0:00:56.4]} 29. exd5 {[%clk 0:00:58.6]}
29... Nxb2 {[%clk 0:00:45.4]} 30. Rxf7 {[%clk 0:00:53.6]} 30... Kxf7 {[%clk
0:00:40]} 31. Rf1+ {[%clk 0:00:52.8]} 31... Bf6 {[%clk 0:00:32.5]} 32. Rxf6+
{[%clk 0:00:44.6]} 32... Kxf6 {[%clk 0:00:32.6]} 33. Be4 {[%clk 0:00:27.7]}
33... Nf4 {[%clk 0:00:14]} 34. Bxf4 {[%clk 0:00:23.3]} 34... exf4 {[%clk
0:00:13.6]} 35. Qg6+ {[%clk 0:00:23.2]} 35... Ke7 {[%clk 0:00:12]} 36. Qg7+
{[%clk 0:00:23.2]} 36... Kd8 {[%clk 0:00:10.1]} 37. Qf8+ {[%clk 0:00:22.9]} 1-0

[Event "*** Titled Tuesday Blitz"]
[Site "Chess.com"]
[Date "2020.11.24"]
[Round "4"]
[White "shriyanasmallya"]
[Black "ExtremeLearner"]
[Result "0-1"]
[WhiteElo "1678"]
[BlackElo "2383"]
[TimeControl "180+1"]
[EndTime "10:55:09 PST"]
[Termination "ExtremeLearner won by checkmate"]

1. e4 {[%clk 0:03:00.9]} 1... c6 {[%clk 0:02:59]} 2. d4 {[%clk 0:02:57.2]} 2...
d5 {[%clk 0:02:49.5]} 3. Nc3 {[%clk 0:02:55.4]} 3... dxe4 {[%clk 0:02:47.6]} 4.
Nxe4 {[%clk 0:02:54.4]} 4... Nf6 {[%clk 0:02:48.5]} 5. Ng3 {[%clk 0:02:53]} 5...
h5 {[%clk 0:02:42.4]} 6. h4 {[%clk 0:02:49.5]} 6... Bg4 {[%clk 0:02:37.8]} 7.
Be2 {[%clk 0:02:46.5]} 7... Nbd7 {[%clk 0:02:25.7]} 8. Bxg4 {[%clk 0:02:41.8]}
8... hxg4 {[%clk 0:02:17.6]} 9. Be3 {[%clk 0:02:37.7]} 9... e5 {[%clk
0:02:06.5]} 10. dxe5 {[%clk 0:02:34.4]} 10... Nxe5 {[%clk 0:02:07.4]} 11. N1e2
{[%clk 0:02:25.4]} 11... Bb4+ {[%clk 0:02:02.7]} 12. Nc3 {[%clk 0:02:19.7]}
12... Qxd1+ {[%clk 0:01:36.2]} 13. Rxd1 {[%clk 0:02:17.3]} 13... Nd5 {[%clk
0:01:27.3]} 14. Bd2 {[%clk 0:02:13.1]} 14... Bxc3 {[%clk 0:01:06.4]} 15. Bxc3
{[%clk 0:02:10.7]} 15... Nxc3 {[%clk 0:01:04.7]} 16. bxc3 {[%clk 0:02:09.3]}
16... O-O {[%clk 0:01:03.7]} 17. O-O {[%clk 0:02:06.6]} 17... f5 {[%clk
0:01:00.5]} 18. Rfe1 {[%clk 0:01:56.2]} 18... Rae8 {[%clk 0:00:52.5]} 19. h5
{[%clk 0:01:50.4]} 19... f4 {[%clk 0:00:47.4]} 20. Ne4 {[%clk 0:01:48.3]} 20...
Nc4 {[%clk 0:00:34.9]} 21. Rd4 {[%clk 0:01:40.6]} 21... b5 {[%clk 0:00:31.8]}
22. Red1 {[%clk 0:01:37.1]} 22... f3 {[%clk 0:00:24]} 23. g3 {[%clk 0:01:33.9]}
23... Nb2 {[%clk 0:00:22.7]} 24. Rb1 {[%clk 0:01:32.4]} 24... Na4 {[%clk
0:00:16.2]} 25. Nd6 {[%clk 0:01:28.4]} 25... Re2 {[%clk 0:00:10]} 26. Rxg4
{[%clk 0:01:26.3]} 26... Nxc3 {[%clk 0:00:08.8]} 27. Rc1 {[%clk 0:01:20.5]}
27... Re6 {[%clk 0:00:09]} 28. Rd1 {[%clk 0:01:02.8]} 28... Ne2+ {[%clk
0:00:07.2]} 29. Kh2 {[%clk 0:00:59.2]} 29... Rd8 {[%clk 0:00:06.8]} 30. Nf5
{[%clk 0:00:50.2]} 30... Rxd1 {[%clk 0:00:05.9]} 31. Nxg7 {[%clk 0:00:50.6]}
31... Rh6 {[%clk 0:00:04.3]} 32. Nf5+ {[%clk 0:00:49.4]} 32... Kh7 {[%clk
0:00:04.2]} 33. Nxh6 {[%clk 0:00:49.4]} 33... Kxh6 {[%clk 0:00:05.1]} 34. Rg6+
{[%clk 0:00:46.7]} 34... Kxh5 {[%clk 0:00:05]} 35. Rxc6 {[%clk 0:00:47.1]} 35...
Rf1 {[%clk 0:00:04.8]} 36. Rc5+ {[%clk 0:00:42.7]} 36... Kg4 {[%clk 0:00:05.2]}
37. Rxb5 {[%clk 0:00:39.8]} 37... Rxf2+ {[%clk 0:00:06.1]} 38. Kh1 {[%clk
0:00:38.9]} 38... Nxg3+ {[%clk 0:00:06.2]} 39. Kg1 {[%clk 0:00:38.6]} 39... Rg2#
{[%clk 0:00:07.1]} 0-1

[Event "*** Titled Tuesday Blitz"]
[Site "Chess.com"]
[Date "2020.11.24"]
[Round "4"]
[White "Cambek64"]
[Black "niki_2003"]
[Result "1-0"]
[WhiteElo "2291"]
[BlackElo "1993"]
[TimeControl "180+1"]
[EndTime "10:55:09 PST"]
[Termination "Cambek64 won by resignation"]

1. e4 {[%clk 0:02:55.5]} 1... c5 {[%clk 0:02:59.7]} 2. Nc3 {[%clk 0:02:54.4]}
2... a6 {[%clk 0:02:57.7]} 3. Nf3 {[%clk 0:02:52.6]} 3... b5 {[%clk 0:02:54.5]}
4. d4 {[%clk 0:02:52.8]} 4... cxd4 {[%clk 0:02:54.7]} 5. Nxd4 {[%clk 0:02:53.1]}
5... Bb7 {[%clk 0:02:55.2]} 6. Bd3 {[%clk 0:02:53.5]} 6... d6 {[%clk 0:02:55.2]}
7. O-O {[%clk 0:02:54]} 7... Nf6 {[%clk 0:02:55.4]} 8. Qe2 {[%clk 0:02:52.9]}
8... g6 {[%clk 0:02:54.7]} 9. Be3 {[%clk 0:02:44.9]} 9... Bg7 {[%clk 0:02:54.1]}
10. a3 {[%clk 0:02:45.4]} 10... O-O {[%clk 0:02:52.3]} 11. Rad1 {[%clk
0:02:45.8]} 11... Nbd7 {[%clk 0:02:52.5]} 12. f4 {[%clk 0:02:46.1]} 12... Nc5
{[%clk 0:02:51.6]} 13. e5 {[%clk 0:02:43.5]} 13... dxe5 {[%clk 0:02:47.6]} 14.
fxe5 {[%clk 0:02:43]} 14... Nd5 {[%clk 0:02:43.9]} 15. Nb3 {[%clk 0:01:46.6]}
15... Nxc3 {[%clk 0:02:23.3]} 16. bxc3 {[%clk 0:01:45.1]} 16... Nxb3 {[%clk
0:02:23.2]} 17. cxb3 {[%clk 0:01:43.8]} 17... Qc7 {[%clk 0:02:15.5]} 18. Bd4
{[%clk 0:01:43.2]} 18... Rad8 {[%clk 0:02:12.7]} 19. Be4 {[%clk 0:01:41.5]}
19... Bxe5 {[%clk 0:02:09]} 20. Bxb7 {[%clk 0:01:35.4]} 20... Bxd4+ {[%clk
0:02:07.2]} 21. cxd4 {[%clk 0:01:27.1]} 21... Qxb7 {[%clk 0:02:04.5]} 22. h4
{[%clk 0:01:24.5]} 22... e6 {[%clk 0:01:56]} 23. h5 {[%clk 0:01:23.6]} 23... Rd5
{[%clk 0:01:48.4]} 24. h6 {[%clk 0:01:22.5]} 24... Rfd8 {[%clk 0:01:39.5]} 25.
Qf3 {[%clk 0:01:20.1]} 25... Qe7 {[%clk 0:01:37.3]} 26. Qe3 {[%clk 0:01:08.2]}
26... Rh5 {[%clk 0:01:34.5]} 27. Rf3 {[%clk 0:01:05.6]} 27... e5 {[%clk
0:01:25.9]} 28. d5 {[%clk 0:01:02.5]} 28... e4 {[%clk 0:01:23.7]} 29. Rh3 {[%clk
0:00:55.7]} 29... Rhxd5 {[%clk 0:01:20.8]} 30. Re1 {[%clk 0:00:50.6]} 30... f5
{[%clk 0:01:19]} 31. b4 {[%clk 0:00:47.7]} 31... Rd3 {[%clk 0:01:17.8]} 32. Qf4
{[%clk 0:00:48.1]} 32... Rxh3 {[%clk 0:01:14.6]} 33. gxh3 {[%clk 0:00:48.6]}
33... Qd6 {[%clk 0:01:12.3]} 34. Qg5 {[%clk 0:00:47.5]} 34... Qb6+ {[%clk
0:01:11.5]} 35. Kf1 {[%clk 0:00:45.8]} 35... Rd3 {[%clk 0:01:09]} 36. Re2 {[%clk
0:00:31]} 36... Qe6 {[%clk 0:00:53.5]} 37. Rc2 {[%clk 0:00:25.3]} 37... Rf3+
{[%clk 0:00:50.8]} 38. Ke2 {[%clk 0:00:24.4]} 38... Rxh3 {[%clk 0:00:34.6]} 39.
Qd8+ {[%clk 0:00:22.7]} 39... Kf7 {[%clk 0:00:32]} 40. Rc7+ {[%clk 0:00:23.1]}
40... Qe7 {[%clk 0:00:30.1]} 41. Qxe7+ {[%clk 0:00:22.4]} 1-0